bitfinex/quotes_BTCUSD_20241119
["timestamp","ask_amount","ask_price","bid_price","bid_amount"]
[1731982816753,0.00916926,91173.0,91170.0,0.0017088]
[1731982816962,0.109682,91172.0,91170.0,0.0017088]
[1731982817173,0.11885113,91172.0,91170.0,0.0017088]
[1731982817631,0.11885113,91172.0,91170.0,0.0077088]
[1731982818092,0.109684,91171.0,91170.0,0.0077088]
[1731982818536,0.11882044,91171.0,91170.0,0.0077088]
[1731982818978,0.11882044,91171.0,91170.0,0.0017088]
[1731982819194,0.00913644,91171.0,91170.0,0.0077088]
[1731982819406,0.00913644,91171.0,91170.0,0.0017088]
[1731982819616,0.00913644,91171.0,91170.0,0.0107088]
[1731982819839,0.110682,91173.0,91170.0,0.0107088]
[1731982820048,0.00913644,91171.0,91170.0,0.0017088]
[1731982820257,0.001,91171.0,91170.0,0.0077088]
[1731982820480,0.23888299,91171.0,91170.0,0.0077088]
[1731982820721,0.35624655,91171.0,91170.0,0.0017088]
[1731982820931,0.36537384,91171.0,91170.0,0.0017088]
[1731982821136,0.36737384,91171.0,91170.0,0.0017088]
[1731982821782,0.36537384,91171.0,91170.0,0.0017088]
[1731982822422,0.37937384,91171.0,91170.0,0.0037088]
[1731982822628,0.37937384,91171.0,91170.0,0.0017088]
[1731982822629,0.36537384,91171.0,91170.0,0.0017088]
[1731982822863,0.37937384,91171.0,91170.0,0.0037088]
[1731982823086,0.39337384,91171.0,91170.0,0.0057088]
[1731982823313,0.37937384,91171.0,91170.0,0.0037088]
[1731982823756,0.40637384,91171.0,91170.0,0.0057088]
[1731982828456,0.28668984,91171.0,91170.0,0.0057088]
[1731982828672,0.24808984,91171.0,91170.0,0.0057088]
[1731982828894,3.45554157,91210.0,91209.0,0.02]
[1731982829362,2.50962304,91210.0,91209.0,0.3649257]
[1731982829365,2.50962304,91210.0,91209.0,0.52133094]
[1731982829366,1.64752471,91210.0,91209.0,0.52133094]
[1731982829573,1.4960204,91210.0,91209.0,0.34406418]
[1731982829786,1.11956793,91210.0,91209.0,0.3769257]
[1731982830001,1.11956793,91210.0,91209.0,0.31002941]
[1731982830002,1.03539408,91210.0,91209.0,0.31002941]
[1731982830216,1.05949132,91210.0,91209.0,0.58373864]
[1731982830470,1.05949132,91210.0,91209.0,0.55573864]
[1731982830471,0.97078332,91210.0,91209.0,0.55573864]
[1731982830691,0.94885632,91210.0,91209.0,0.4078381]
[1731982830907,0.94885632,91210.0,91209.0,0.5201258]
[1731982831118,0.94885632,91210.0,91209.0,0.4338381]
[1731982831119,0.94985632,91210.0,91209.0,0.4338381]
[1731982831332,0.94985632,91210.0,91209.0,0.5461258]
[1731982831554,0.94985632,91210.0,91209.0,0.41147912]
[1731982831797,0.92285632,91210.0,91209.0,0.52176682]
[1731982832007,0.92285632,91210.0,91209.0,0.50688807]
[1731982832008,0.92385632,91210.0,91209.0,0.50688807]
[1731982832258,0.92285632,91210.0,91209.0,0.26670055]
[1731982832699,0.92185632,91210.0,91209.0,0.23870055]
[1731982832915,0.92185632,91210.0,91209.0,0.26670055]
[1731982833357,0.92185632,91210.0,91209.0,0.25670055]
[1731982833570,0.92185632,91210.0,91209.0,0.35670055]
[1731982833779,0.92185632,91210.0,91209.0,0.32870055]
[1731982834826,0.92285632,91210.0,91209.0,0.35670055]
[1731982835045,0.92285632,91210.0,91209.0,0.38470055]
[1731982835426,0.92185632,91210.0,91209.0,0.35670055]
[1731982835648,0.92285632,91210.0,91209.0,0.38470055]
[1731982836208,0.92285632,91210.0,91209.0,0.35670055]
[1731982836441,0.9331165,91210.0,91209.0,0.35670055]
[1731982836640,0.9331165,91210.0,91209.0,0.38470055]
[1731982837122,0.9331165,91210.0,91209.0,0.35670055]
[1731982837544,0.9331165,91210.0,91209.0,0.38470055]
[1731982837952,0.9321165,91210.0,91209.0,0.35840835]
[1731982838271,0.9339704,91210.0,91209.0,0.38640835]
[1731982840414,0.9339704,91210.0,91209.0,0.2773458]
[1731982840658,0.9339704,91210.0,91209.0,0.2673458]
[1731982840868,0.9339704,91210.0,91209.0,0.2773458]
[1731982841289,0.9329704,91210.0,91209.0,0.2493458]
[1731982841504,0.9339704,91210.0,91209.0,0.2773458]
[1731982841968,0.9329704,91210.0,91209.0,0.2493458]
[1731982842397,0.9339704,91210.0,91209.0,0.2773458]
[1731982842608,0.9339704,91210.0,91209.0,0.1773458]
[1731982842822,0.9329704,91210.0,91209.0,0.1213458]
[1731982843302,0.9329704,91210.0,91209.0,0.1493458]
[1731982843482,0.9329704,91210.0,91209.0,0.1213458]
[1731982843728,0.9329704,91210.0,91209.0,0.1443458]
[1731982844155,0.9339704,91210.0,91209.0,0.1723458]
[1731982844655,0.9329704,91210.0,91209.0,0.1443458]
[1731982845087,0.9339704,91210.0,91209.0,0.1693458]
[1731982845966,0.9339704,91210.0,91209.0,0.1593458]
[1731982847066,0.9339704,91210.0,91209.0,0.1363458]
[1731982847512,0.9329704,91210.0,91209.0,0.1333458]
[1731982847942,0.9339704,91210.0,91209.0,0.1363458]
[1731982848396,0.9329704,91210.0,91209.0,0.1113458]
[1731982848618,0.9339704,91210.0,91209.0,0.1303458]
[1731982849041,0.9339704,91210.0,91209.0,0.0207078]
[1731982849254,0.9339704,91210.0,91209.0,0.1413458]
[1731982849470,0.9838704,91210.0,91209.0,0.0317078]
[1731982850176,0.9339704,91210.0,91209.0,0.36040835]
[1731982850404,0.9339704,91210.0,91209.0,0.38340835]
[1731982850619,0.9339704,91210.0,91209.0,0.36340835]
[1731982850620,0.9329704,91210.0,91209.0,0.36340835]
[1731982851121,0.9329704,91210.0,91209.0,0.38295715]
[1731982851122,0.93680294,91210.0,91209.0,0.38295715]
[1731982851353,0.93580294,91210.0,91209.0,0.37295715]
[1731982851810,0.93780294,91210.0,91209.0,0.40095715]
[1731982852024,0.92771022,91210.0,91209.0,0.40095715]
[1731982852335,0.92471022,91210.0,91209.0,0.40095715]
[1731982852441,0.93480294,91210.0,91209.0,0.40095715]
[1731982852676,0.93480294,91210.0,91209.0,0.42895715]
[1731982853140,0.92471022,91210.0,91209.0,0.42895715]
[1731982853354,0.92471022,91210.0,91209.0,0.40095715]
[1731982853579,0.93280294,91210.0,91209.0,0.37295715]
[1731982853782,0.93280294,91210.0,91209.0,0.42995715]
[1731982854001,0.93280294,91210.0,91209.0,0.40195715]
[1731982854426,0.93280294,91210.0,91209.0,0.40095715]
[1731982854890,0.93280294,91210.0,91209.0,0.42995715]
[1731982856707,0.93280294,91210.0,91209.0,0.37295715]
[1731982856928,0.93280294,91210.0,91209.0,0.42995715]
[1731982857364,0.93280294,91210.0,91209.0,0.40095715]
[1731982857807,0.93280294,91210.0,91209.0,0.42995715]
[1731982860337,0.93280294,91210.0,91209.0,0.40695715]
[1731982860643,0.92271022,91210.0,91209.0,0.40695715]
[1731982861277,0.93289823,91210.0,91209.0,0.40695715]
[1731982864832,0.95340986,91210.0,91209.0,0.39740835]
[1731982865513,0.95340986,91210.0,91209.0,0.43040835]
[1731982865717,0.93289823,91210.0,91209.0,0.40240835]
[1731982866132,0.93289823,91210.0,91209.0,0.39140835]
[1731982866574,0.93289823,91210.0,91209.0,0.41840835]
[1731982868584,0.93289823,91210.0,91209.0,0.56424205]
[1731982868796,0.93289823,91210.0,91209.0,0.43040835]
[1731982868797,0.82326323,91210.0,91209.0,0.43040835]
[1731982869014,0.82326323,91210.0,91209.0,0.6230051]
[1731982869225,0.82326323,91210.0,91209.0,0.42840835]
[1731982869658,0.82326323,91210.0,91209.0,0.64446452]
[1731982870080,0.82326323,91210.0,91209.0,0.67246452]
[1731982870287,0.82326323,91210.0,91209.0,0.42940835]
[1731982870503,0.81307522,91210.0,91209.0,0.61846452]
[1731982870713,0.82336933,91210.0,91209.0,0.43140835]
[1731982871103,0.82336933,91210.0,91209.0,0.42940835]
[1731982871539,0.82336933,91210.0,91209.0,0.41940835]
[1731982871952,0.82336933,91210.0,91209.0,0.42940835]
[1731982872159,0.82336933,91210.0,91209.0,0.36340835]
[1731982872362,0.82336933,91210.0,91209.0,0.39140835]
[1731982873015,0.82336933,91210.0,91209.0,0.36840835]
[1731982873223,0.82336933,91210.0,91209.0,0.39640835]
[1731982873435,0.82336933,91210.0,91209.0,0.6124498]
[1731982873636,0.82336933,91210.0,91209.0,0.39640835]
[1731982873837,0.82336933,91210.0,91209.0,0.36840835]
[1731982874247,0.82336933,91210.0,91209.0,0.34040835]
[1731982875344,0.88957414,91210.0,91209.0,0.3234771]
[1731982875555,0.88957414,91210.0,91209.0,0.0297078]
[1731982875556,0.92238814,91210.0,91209.0,0.0297078]
[1731982875787,0.92238814,91210.0,91209.0,0.22564654]
[1731982876257,0.92238814,91210.0,91209.0,0.0017078]
[1731982876458,0.92238814,91210.0,91209.0,0.1393458]
[1731982876925,0.92238814,91210.0,91209.0,0.31435002]
[1731982877147,0.92238814,91210.0,91209.0,0.28635002]
[1731982877587,0.92238814,91210.0,91209.0,0.27735002]
[1731982877832,0.92238814,91210.0,91209.0,0.1303458]
[1731982878060,0.91209403,91210.0,91209.0,0.27736009]
[1731982878510,0.91209403,91210.0,91209.0,0.16772209]
[1731982878511,0.92249764,91210.0,91209.0,0.16772209]
[1731982878726,0.92249764,91210.0,91209.0,0.0017078]
[1731982878949,0.92249764,91210.0,91209.0,0.19764809]
[1731982879179,0.92249764,91210.0,91209.0,0.0167078]
[1731982879394,0.92249764,91210.0,91209.0,0.1263458]
[1731982879620,0.92249764,91210.0,91209.0,0.26437893]
[1731982879838,0.92249764,91210.0,91209.0,0.27137893]
[1731982880095,0.92249764,91210.0,91209.0,0.16174093]
[1731982880323,1.11493464,91210.0,91209.0,0.0147078]
[1731982882177,1.00529764,91210.0,91209.0,0.0147078]
[1731982882395,1.00529764,91210.0,91209.0,0.1243458]
[1731982882632,0.97248364,91210.0,91209.0,0.1243458]
[1731982882863,0.96208003,91210.0,91209.0,0.1243458]
[1731982883315,0.97244505,91210.0,91209.0,0.1243458]
[1731982884422,0.97244505,91210.0,91209.0,0.24340835]
[1731982884638,0.95194024,91210.0,91209.0,0.1243458]
[1731982884856,0.95194024,91210.0,91209.0,0.0147078]
[1731982885073,1.06157724,91210.0,91209.0,0.0147078]
[1731982885297,1.11483966,91210.0,91209.0,0.0147078]
[1731982885540,1.08206213,91210.0,91209.0,0.0147078]
[1731982885753,1.11483488,91210.0,91209.0,0.0147078]
[1731982886409,0.97242513,91210.0,91209.0,0.0147078]
[1731982887268,0.95194024,91210.0,91209.0,0.0147078]
[1731982887735,1.0820562,91210.0,91209.0,0.0147078]
[1731982888340,1.08205486,91210.0,91209.0,0.0147078]
[1731982888553,0.97241786,91210.0,91209.0,0.0147078]
[1731982888772,0.97241786,91210.0,91209.0,0.1243458]
[1731982888985,0.97241786,91210.0,91209.0,0.0147078]
[1731982890923,0.97241427,91210.0,91209.0,0.0147078]
[1731982891549,0.97241427,91210.0,91209.0,0.1243458]
[1731982891754,0.95194024,91210.0,91209.0,0.1243458]
[1731982897537,0.97242024,91210.0,91209.0,0.1243458]
[1731982898462,0.95194024,91210.0,91209.0,0.1243458]
[1731982898698,0.82344024,91210.0,91209.0,0.1243458]
[1731982899381,0.82344024,91210.0,91209.0,0.34340835]
[1731982899605,0.82344024,91210.0,91209.0,0.58832887]
[1731982899842,0.81307522,91210.0,91209.0,0.34340835]
[1731982900286,0.8228694,91210.0,91209.0,0.58813597]
[1731982900497,0.8228694,91210.0,91209.0,0.34340835]
[1731982900712,0.8228694,91210.0,91209.0,0.33640835]
[1731982900934,0.8228694,91210.0,91209.0,0.2213458]
[1731982901184,0.8228694,91210.0,91209.0,0.2593458]
[1731982901402,0.8228694,91210.0,91209.0,0.42717314]
[1731982901614,0.8228694,91210.0,91209.0,0.2213458]
[1731982901831,0.81307522,91210.0,91209.0,0.33127949]
[1731982902060,0.89317522,91210.0,91209.0,0.3312785]
[1731982902290,0.89317522,91210.0,91209.0,0.1333458]
[1731982902291,0.9029694,91210.0,91209.0,0.1333458]
[1731982902524,0.92347639,91210.0,91209.0,0.1113458]
[1731982902729,0.92347639,91210.0,91209.0,0.1273458]
[1731982903356,0.92347639,91210.0,91209.0,0.1553458]
[1731982903582,0.92347639,91210.0,91209.0,0.1273458]
[1731982903848,0.92347639,91210.0,91209.0,0.1113458]
[1731982904066,0.92347639,91210.0,91209.0,0.1213458]
[1731982904290,0.96877639,91210.0,91209.0,0.1313458]
[1731982905557,0.9482694,91210.0,91209.0,0.1313458]
[1731982905773,0.96878895,91210.0,91209.0,0.1313458]
[1731982906668,0.96878895,91210.0,91209.0,0.1413458]
[1731982906883,0.8228694,91210.0,91209.0,0.33931958]
[1731982907558,0.8228694,91210.0,91209.0,0.2413458]
[1731982907774,0.81307522,91210.0,91209.0,0.38830647]
[1731982907990,0.81307522,91210.0,91209.0,0.43729336]
[1731982908210,0.82287791,91210.0,91209.0,0.2413458]
[1731982908438,0.81307522,91210.0,91209.0,0.2413458]
[1731982908655,0.82287791,91210.0,91209.0,0.2413458]
[1731982909378,0.82287791,91210.0,91209.0,0.43714759]
[1731982909618,0.82287791,91210.0,91209.0,0.2413458]
[1731982912110,0.82287791,91210.0,91209.0,0.43716537]
[1731982912333,0.82287791,91210.0,91209.0,0.32716537]
[1731982912560,0.82287791,91210.0,91209.0,0.1313458]
[1731982913000,0.81307522,91210.0,91209.0,0.1313458]
[1731982913225,0.81307522,91210.0,91209.0,0.27823078]
[1731982913442,0.82287791,91210.0,91209.0,0.1313458]
[1731982913660,0.82287791,91210.0,91209.0,0.22928206]
[1731982914151,0.81307522,91210.0,91209.0,0.1313458]
[1731982914390,0.82287791,91210.0,91209.0,0.1313458]
[1731982914636,0.82287791,91210.0,91209.0,0.28823078]
[1731982915131,0.81307522,91210.0,91209.0,0.37340835]
[1731982915372,0.82287791,91210.0,91209.0,0.37340835]
[1731982918229,0.82287791,91210.0,91209.0,0.6671155]
[1731982919388,0.82287791,91210.0,91209.0,0.37340835]
[1731982920268,0.82287791,91210.0,91209.0,0.6671155]
[1731982920515,0.82287791,91210.0,91209.0,0.37340835]
[1731982921610,0.82287791,91210.0,91209.0,0.2413458]
[1731982921830,0.89937791,91210.0,91209.0,0.2413458]
[1731982922056,0.88957522,91210.0,91209.0,0.2413458]
[1731982922284,0.91990843,91210.0,91209.0,0.2313458]
[1731982922518,0.91990895,91210.0,91209.0,0.2413458]
[1731982922963,0.91990895,91210.0,91209.0,0.37824871]
[1731982923175,0.89940247,91210.0,91209.0,0.37824871]
[1731982923389,0.91990985,91210.0,91209.0,0.37824871]
[1731982923816,0.91990985,91210.0,91209.0,0.38824871]
[1731982924914,0.91990985,91210.0,91209.0,0.37824871]
[1731982925124,0.91990985,91210.0,91209.0,0.38824871]
[1731982925342,0.91990985,91210.0,91209.0,0.37824871]
[1731982925570,0.84340985,91210.0,91209.0,0.2413458]
[1731982926208,0.82290247,91210.0,91209.0,0.2413458]
[1731982926419,0.84341575,91210.0,91209.0,0.2413458]
[1731982926645,0.82290247,91210.0,91209.0,0.2413458]
[1731982927102,0.82290247,91210.0,91209.0,0.43718743]
[1731982927798,0.82290247,91210.0,91209.0,0.42718743]
[1731982928009,0.82290247,91210.0,91209.0,0.43718743]
[1731982928461,0.84342176,91210.0,91209.0,0.2313458]
[1731982928720,0.96642166,91210.0,91208.0,0.14688893]
[1731982928944,0.232644,91204.0,91203.0,0.09793533]
[1731982929185,0.0798,91199.0,91197.0,0.19584163]
[1731982929453,0.05335391,91198.0,91197.0,0.19584163]
[1731982929680,0.05335391,91198.0,91194.0,0.24477965]
[1731982929681,0.03043693,91198.0,91185.0,0.31731512]
[1731982929912,0.02051919,91197.0,91191.0,0.109659]
[1731982930122,0.02051919,91196.0,91191.0,0.1]
[1731982930343,0.02051919,91195.0,91191.0,0.1]
[1731982930516,0.02051919,91194.0,91191.0,0.1]
[1731982930762,0.0798,91199.0,91191.0,0.1]
[1731982930983,0.02050651,91198.0,91197.0,0.109652]
[1731982931191,0.0798,91199.0,91196.0,0.1222877]
[1731982931192,0.0798,91199.0,91198.0,0.119651]
[1731982931405,0.0465,91204.0,91198.0,0.119651]
[1731982931406,0.0465,91204.0,91203.0,0.109645]
[1731982933605,0.0695,91204.0,91203.0,0.112645]
[1731982933819,0.0695,91204.0,91203.0,0.122645]
[1731982933820,0.07940735,91204.0,91203.0,0.122645]
[1731982934026,0.023,91204.0,91203.0,0.22055248]
[1731982934249,0.023,91204.0,91203.0,0.122645]
[1731982935145,0.023,91204.0,91203.0,0.26950622]
[1731982935355,0.023,91204.0,91203.0,0.122645]
[1731982935790,0.023,91204.0,91203.0,0.112645]
[1731982936002,0.03292125,91204.0,91203.0,0.122645]
[1731982936641,0.03292125,91204.0,91203.0,0.26950622]
[1731982937091,0.03292125,91204.0,91203.0,0.25950622]
[1731982937509,0.03292125,91204.0,91203.0,0.112645]
[1731982937732,0.03292125,91204.0,91203.0,0.21058338]
[1731982937943,0.03292125,91204.0,91203.0,0.112645]
[1731982938156,0.023,91204.0,91203.0,0.112645]
[1731982938373,0.023,91204.0,91203.0,0.21058338]
[1731982938579,0.03292125,91204.0,91203.0,0.21058338]
[1731982938807,0.023,91204.0,91203.0,0.112645]
[1731982939018,0.023,91204.0,91203.0,0.25950622]
[1731982939469,0.023,91204.0,91203.0,0.112645]
[1731982939834,0.023,91204.0,91203.0,0.122645]
[1731982940789,0.023,91204.0,91203.0,0.26956736]
[1731982941012,0.023,91204.0,91203.0,0.122645]
[1731982941448,0.023,91204.0,91203.0,0.31845996]
[1731982941857,0.023,91204.0,91203.0,0.1243528]
[1731982942480,0.023,91204.0,91203.0,0.1143528]
[1731982942680,0.023,91204.0,91203.0,0.21230973]
[1731982942908,0.03291462,91204.0,91203.0,0.1243528]
[1731982943254,0.023,91204.0,91203.0,0.1243528]
[1731982943460,0.023,91204.0,91203.0,0.27125117]
[1731982943691,0.023,91204.0,91203.0,0.1243528]
[1731982944133,0.023,91204.0,91203.0,0.2243528]
[1731982944823,0.016,91204.0,91203.0,0.2233528]
[1731982945252,0.016,91204.0,91203.0,0.2333528]
[1731982945483,0.81307522,91210.0,91209.0,0.109638]
[1731982945694,0.81307522,91210.0,91209.0,0.26650315]
[1731982945906,0.81307522,91210.0,91209.0,0.119638]
[1731982947533,0.81307522,91210.0,91209.0,0.126638]
[1731982947753,0.81307522,91210.0,91209.0,0.3683925]
[1731982947983,0.81307522,91210.0,91209.0,0.3773925]
[1731982948205,0.81307522,91210.0,91209.0,0.3733925]
[1731982948409,0.81307522,91210.0,91209.0,0.128638]
[1731982948617,0.81307522,91210.0,91209.0,0.38038094]
[1731982949513,0.81307522,91210.0,91209.0,0.135638]
[1731982949715,0.81307522,91210.0,91209.0,0.28251455]
[1731982950346,0.81307522,91210.0,91209.0,0.135638]
[1731982950556,0.81307522,91210.0,91209.0,0.28250972]
[1731982950767,0.81307522,91210.0,91209.0,0.14514296]
[1731982951849,0.81307522,91210.0,91209.0,0.29203074]
[1731982952313,0.81307522,91210.0,91209.0,0.29202937]
[1731982952579,0.81307522,91210.0,91209.0,0.14514296]
[1731982953044,0.81307522,91210.0,91209.0,0.135638]
[1731982953979,0.81307522,91210.0,91209.0,0.28252748]
[1731982954204,0.81307522,91210.0,91209.0,0.135638]
[1731982954635,0.81307522,91210.0,91209.0,0.33148654]
[1731982956623,0.81307522,91210.0,91209.0,0.11393405]
[1731982956860,0.81307522,91210.0,91209.0,0.125638]
[1731982957069,0.82299961,91210.0,91209.0,0.11394006]
[1731982957280,0.89037522,91210.0,91209.0,0.016]
[1731982957519,1.00993661,91210.0,91209.0,0.016]
[1731982959519,1.05873661,91210.0,91209.0,0.016]
[1731982960386,1.05873661,91210.0,91209.0,0.009]
[1731982960592,1.05873661,91210.0,91209.0,0.01]
[1731982960799,1.06073661,91210.0,91209.0,0.01]
[1731982961028,1.16979916,91210.0,91209.0,0.009]
[1731982961233,1.16979916,91210.0,91203.0,0.0017078]
[1731982961234,0.109644,91204.0,91203.0,0.0017078]
[1731982961441,0.241244,91204.0,91203.0,0.0017078]
[1731982961652,0.25115983,91204.0,91203.0,0.0017078]
[1731982961861,0.36022238,91204.0,91203.0,0.0017078]
[1731982962975,0.36022238,91204.0,91203.0,0.0047078]
[1731982967386,0.25115983,91204.0,91203.0,0.0047078]
[1731982968696,0.25115983,91204.0,91203.0,0.0037078]
[1731982968920,0.25115983,91204.0,91203.0,0.0017078]
[1731982969152,0.14951583,91204.0,91203.0,0.1133528]
[1731982969400,0.14951583,91204.0,91203.0,0.0037078]
[1731982969631,0.25915983,91204.0,91203.0,0.0037078]
[1731982969858,0.25915983,91204.0,91203.0,0.0047078]
[1731982970548,0.25915983,91204.0,91203.0,0.0037078]
[1731982970790,0.25915983,91204.0,91203.0,0.0047078]
[1731982971018,0.25115983,91204.0,91203.0,0.0027078]
[1731982971456,0.25915983,91204.0,91203.0,0.0047078]
[1731982971673,0.25115983,91204.0,91203.0,0.0027078]
[1731982972142,0.25915983,91204.0,91203.0,0.0047078]
[1731982973434,0.36822238,91204.0,91203.0,0.0047078]
[1731982974060,0.36822238,91204.0,91203.0,0.0037078]
[1731982974484,0.36022238,91204.0,91203.0,0.0017078]
[1731982975332,0.36022238,91204.0,91203.0,0.0047078]
[1731982975333,0.36822238,91204.0,91203.0,0.0047078]
[1731982975794,0.186259,91191.0,91190.0,0.16445655]
[1731982976028,0.45560925,91191.0,91190.0,0.16445655]
[1731982976231,0.45560925,91191.0,91179.0,0.16445655]
[1731982976232,0.35559711,91191.0,91179.0,0.16445655]
[1731982976436,0.219324,91189.0,91179.0,0.16445655]
[1731982976648,0.10906255,91190.0,91179.0,0.16445655]
[1731982976850,0.00964653,91188.0,91180.0,0.219346]
[1731982977059,0.00964664,91189.0,91179.0,0.16445655]
[1731982977265,0.10906255,91190.0,91179.0,0.16445655]
[1731982977266,0.11931142,91187.0,91182.0,0.10967]
[1731982977490,0.109665,91187.0,91182.0,0.10967]
[1731982977711,0.00964631,91186.0,91183.0,0.109669]
[1731982977919,0.32838455,91190.0,91183.0,0.109669]
[1731982977920,0.109664,91188.0,91183.0,0.109669]
[1731982978171,0.11931142,91187.0,91181.0,0.109671]
[1731982978405,0.11931142,91187.0,91182.0,0.10967]
[1731982978617,0.11931142,91187.0,91180.0,0.109673]
[1731982978816,0.015,91186.0,91181.0,0.219341]
[1731982979027,0.02464631,91186.0,91184.0,0.109667]
[1731982979230,0.00964631,91186.0,91180.0,0.219346]
[1731982979688,0.019,91187.0,91186.0,0.109665]
[1731982979900,0.005,91187.0,91186.0,0.109665]
[1731982980108,0.1246,91191.0,91186.0,0.109665]
[1731982980337,0.002,91186.0,91182.0,0.219341]
[1731982980542,0.002,91186.0,91180.0,0.219346]
[1731982980761,0.109661,91190.0,91184.0,0.109667]
[1731982981375,0.023,91186.0,91184.0,0.109667]
[1731982981589,0.1246,91191.0,91189.0,0.109661]
[1731982981800,0.1246,91191.0,91187.0,0.109664]
[1731982982031,0.027,91190.0,91187.0,0.109664]
[1731982982241,0.1406,91191.0,91187.0,0.109664]
[1731982982710,0.1246,91191.0,91186.0,0.109664]
[1731982982925,0.1346,91191.0,91187.0,0.110664]
[1731982983124,0.02,91190.0,91189.0,0.109662]
[1731982983368,0.02,91190.0,91189.0,0.119662]
[1731982984477,0.01,91191.0,91190.0,0.109661]
[1731982984743,0.037,91191.0,91190.0,0.109661]
[1731982984961,0.04663837,91191.0,91190.0,0.109661]
[1731982985187,0.00963837,91191.0,91190.0,0.109661]
[1731982985439,0.16445655,91197.0,91196.0,0.109653]
[1731982985879,0.0757,91198.0,91197.0,0.109652]
[1731982986327,0.0469,91202.0,91190.0,0.229322]
[1731982986328,0.0469,91202.0,91201.0,0.109647]
[1731982986544,0.0469,91202.0,91199.0,0.01]
[1731982986545,0.0825,91206.0,91205.0,0.109643]
[1731982987694,0.0825,91206.0,91200.0,0.219298]
[1731982987922,0.0825,91206.0,91204.0,0.109643]
[1731982988173,0.0825,91206.0,91205.0,0.109643]
[1731982988384,0.1095,91206.0,91205.0,0.109643]
[1731982988600,0.0825,91206.0,91205.0,0.109643]
[1731982989025,0.1095,91206.0,91205.0,0.109643]
[1731982989389,0.0995,91206.0,91205.0,0.109643]
[1731982989589,0.1265,91206.0,91205.0,0.109643]
[1731982989818,0.027,91206.0,91205.0,0.119643]
[1731982990224,0.044,91206.0,91205.0,0.120643]
[1731982991348,0.027,91206.0,91200.0,0.09784689]
[1731982991573,0.27759815,91209.0,91194.0,0.09784689]
[1731982991574,0.0761,91203.0,91194.0,0.09784689]
[1731982991829,0.0761,91203.0,91195.0,0.26215183]
[1731982992063,0.0761,91203.0,91195.0,0.109654]
[1731982992369,0.0761,91203.0,91194.0,0.01]
[1731982992549,0.0761,91203.0,91200.0,0.021]
[1731982993021,0.0791,91203.0,91194.0,0.01]
[1731982993259,0.0771,91203.0,91196.0,0.109653]
[1731982993468,0.0771,91203.0,91195.0,0.026]
[1731982993689,0.00967709,91202.0,91195.0,0.135654]
[1731982994316,0.11932409,91202.0,91195.0,0.135654]
[1731982994528,0.00967709,91202.0,91195.0,0.135654]
[1731982994742,0.11932309,91202.0,91195.0,0.135654]
[1731982994963,0.11932309,91202.0,91195.0,0.109654]
[1731982995384,0.11932309,91202.0,91200.0,0.021]
[1731982995385,0.01267709,91202.0,91200.0,0.021]
[1731982995597,0.11932309,91202.0,91200.0,0.021]
[1731982995802,0.11932309,91202.0,91195.0,0.109654]
[1731982996016,0.12532309,91202.0,91195.0,0.109654]
[1731982996241,0.12032309,91202.0,91195.0,0.109654]
[1731982996453,0.109649,91200.0,91192.0,0.119658]
[1731982996661,0.01067709,91202.0,91193.0,0.219313]
[1731982996866,0.00967696,91199.0,91195.0,0.109654]
[1731982997076,0.009,91202.0,91195.0,0.109654]
[1731982997285,0.00967685,91198.0,91195.0,0.109654]
[1731982997549,0.009,91202.0,91201.0,0.109647]
[1731982997751,0.009,91202.0,91201.0,0.119647]
[1731982998296,0.16531045,91209.0,91201.0,0.119647]
[1731982998509,0.008,91202.0,91201.0,0.119647]
[1731982998962,0.0008539,91209.0,91203.0,0.109644]
[1731982999133,0.0008539,91209.0,91201.0,0.01]
[1731982999134,0.0008539,91209.0,91204.0,0.109643]
[1731982999348,0.0008539,91209.0,91202.0,0.219293]
[1731982999558,0.0008539,91209.0,91208.0,0.3749267]
[1731982999763,0.0008539,91209.0,91208.0,0.48398925]
[1731983000027,0.0008539,91209.0,91208.0,0.50593328]
[1731983000259,0.0018539,91209.0,91208.0,0.70123291]
[1731983000671,0.0018539,91209.0,91208.0,0.50593328]
[1731983001386,0.0018539,91209.0,91208.0,0.79844601]
[1731983001584,0.0008539,91209.0,91208.0,0.50593328]
[1731983001814,0.0018539,91209.0,91208.0,0.53093328]
[1731983002129,0.0038539,91209.0,91208.0,0.82334376]
[1731983002358,0.0018539,91209.0,91208.0,0.53093328]
[1731983002568,0.0018539,91209.0,91208.0,0.41864558]
[1731983002762,0.0048539,91209.0,91208.0,0.42064558]
[1731983003800,0.0048539,91209.0,91208.0,0.41064558]
[1731983004376,0.0008539,91209.0,91208.0,0.38364558]
[1731983004580,0.0038539,91209.0,91208.0,0.38464558]
[1731983004816,0.0038539,91209.0,91208.0,0.41264558]
[1731983005013,0.0008539,91209.0,91208.0,0.38864558]
[1731983005214,0.0008539,91209.0,91208.0,0.36064558]
[1731983005416,0.16831045,91209.0,91208.0,0.248639]
[1731983005625,0.01355732,91209.0,91208.0,0.248639]
[1731983005823,0.0038539,91209.0,91208.0,0.248639]
[1731983008738,0.0008539,91209.0,91208.0,0.219639]
[1731983009149,0.0038539,91209.0,91208.0,0.247639]
[1731983009485,0.0008539,91209.0,91208.0,0.246639]
[1731983010538,0.0008539,91209.0,91208.0,0.219639]
[1731983010966,0.0008539,91209.0,91208.0,0.229639]
[1731983011433,0.0038539,91209.0,91208.0,0.32970155]
[1731983011654,0.0038539,91209.0,91208.0,0.42706892]
[1731983011869,0.0008539,91209.0,91208.0,0.34170155]
[1731983012072,0.0008539,91209.0,91208.0,0.48773605]
[1731983012275,0.0008539,91209.0,91208.0,0.32870155]
[1731983012477,0.0038539,91209.0,91208.0,0.42705038]
[1731983012690,0.0038539,91209.0,91208.0,0.45405038]
[1731983012899,0.0008539,91209.0,91208.0,0.35570155]
[1731983013106,0.0008539,91209.0,91208.0,0.50173605]
[1731983013317,0.0038539,91209.0,91208.0,0.35670155]
[1731983013966,0.0038539,91209.0,91208.0,0.32970155]
[1731983014169,0.0038539,91209.0,91208.0,0.35570155]
[1731983014598,0.0008539,91209.0,91208.0,0.35470155]
[1731983014797,0.0038539,91209.0,91208.0,0.35570155]
[1731983016721,0.0038539,91209.0,91208.0,0.38870155]
[1731983017330,0.0038539,91209.0,91208.0,0.53473605]
[1731983017545,0.0038539,91209.0,91208.0,0.38870155]
[1731983017970,0.0038539,91209.0,91208.0,0.58341031]
[1731983018443,0.0038539,91209.0,91208.0,0.38870155]
[1731983018887,0.16831045,91209.0,91208.0,0.37870155]
[1731983019070,0.0038539,91209.0,91208.0,0.37870155]
[1731983022883,0.0038539,91209.0,91208.0,0.57341031]
[1731983023302,0.0038539,91209.0,91208.0,0.37870155]
[1731983024193,0.0038539,91209.0,91208.0,0.52451241]
[1731983024549,0.0038539,91209.0,91208.0,0.37870155]